bitfinex/quotes_ETHUSD_20250404
["timestamp","ask_amount","ask_price","bid_price","bid_amount"]
[1743755865202,10.99999342,1827.3,1827.0,5.47344]
[1743755865497,5.47287,1827.2,1826.9,18.48207617]
[1743755865795,5.47259,1827.3,1827.0,5.47336]
[1743755866010,6.73941,1827.5,1827.1,5.47296]
[1743755866219,5.52715342,1827.4,1827.0,5.4734]
[1743755866374,5.4726,1827.3,1827.0,5.4734]
[1743755867124,10.99958342,1827.4,1827.0,5.47331]
[1743755867276,5.52710342,1827.4,1827.1,5.47307]
[1743755867470,10.99952342,1827.4,1827.1,5.47307]
[1743755867684,5.52709342,1827.4,1827.1,5.47307]
[1743755868086,10.94483,1827.4,1827.1,5.47307]
[1743755868305,12.21148,1827.5,1827.1,5.47307]
[1743755868512,5.4723,1827.4,1827.2,0.547307]
[1743755868718,12.21149,1827.5,1827.1,5.47302]
[1743755868877,12.21149,1827.5,1827.1,10.94606]
[1743755869074,6.7393,1827.5,1827.1,10.94606]
[1743755869275,5.472,1827.5,1827.2,6.81682]
[1743755869588,5.52667342,1827.5,1827.2,6.81682]
[1743755869897,5.472,1827.5,1827.2,6.81682]
[1743755870219,5.52672342,1827.5,1827.2,8.045753]
[1743755870375,5.47205,1827.5,1827.2,8.045803]
[1743755870706,5.47205,1827.5,1827.2,13.57323567]
[1743755870904,12.30321,1827.6,1827.2,8.045713]
[1743755871112,5.47198,1827.5,1827.2,8.045713]
[1743755871321,10.94412,1827.5,1827.3,0.61921462]
[1743755871521,10.94412,1827.5,1827.2,1.228993]
[1743755871677,5.47226,1827.4,1827.2,1.228993]
[1743755872186,5.52665342,1827.5,1827.2,6.701773]
[1743755872813,5.47198,1827.5,1827.2,6.701703]
[1743755873001,10.99875342,1827.5,1827.2,1.228993]
[1743755873826,5.52665342,1827.5,1827.2,6.701713]
[1743755874008,0.05467342,1827.5,1827.3,0.6701713]
[1743755874179,5.47197,1827.5,1827.3,0.6701713]
[1743755875378,6.83141,1827.6,1827.3,6.1426713]
[1743755875580,0.05467342,1827.6,1827.3,7.4123713]
[1743755875797,0.05467342,1827.6,1827.4,0.74123713]
[1743755876203,12.29463,1827.7,1827.4,0.74123713]
[1743755876622,12.29471,1827.7,1827.4,6.21346713]
[1743755876776,12.29471,1827.7,1827.4,0.74123713]
[1743755876976,5.47171,1827.6,1827.4,0.74123713]
[1743755877398,5.47171,1827.6,1827.3,7.4124013]
[1743755877589,5.47171,1827.6,1827.3,7.4123313]
[1743755877791,10.94362,1827.6,1827.3,7.4123313]
[1743755878011,5.47196,1827.5,1827.3,1.9398713]
[1743755878518,10.94409,1827.5,1827.2,10.93074]
[1743755878719,10.94406,1827.5,1827.2,5.458]
[1743755879025,5.47196,1827.5,1827.2,10.93083]
[1743755879395,10.94411,1827.5,1827.2,10.93083]
[1743755879818,10.94411,1827.5,1827.2,5.458]
[1743755881301,5.47196,1827.5,1827.2,10.9308]
[1743755881632,5.52634342,1827.6,1827.3,10.94484]
[1743755881794,5.52634342,1827.6,1827.3,5.4724]
[1743755882126,10.99822342,1827.6,1827.2,13.32415962]
[1743755882322,5.47197,1827.5,1827.2,13.32415962]
[1743755882649,10.99829342,1827.6,1827.3,0.64772388]
[1743755882921,5.47196,1827.5,1827.2,16.40348]
[1743755883126,5.52634342,1827.6,1827.3,5.47245]
[1743755883327,5.47167,1827.6,1827.3,5.52717004]
[1743755883516,5.47167,1827.6,1827.3,10.99961004]
[1743755883715,10.94294,1827.7,1827.4,6.74053]
[1743755883924,5.52586342,1827.8,1827.5,5.47167]
[1743755884104,5.47119,1827.8,1827.5,5.47167]
[1743755884303,6.85605,1827.9,1827.5,10.94348]
[1743755884510,5.62552342,1827.9,1827.6,5.4716]
[1743755885008,11.09642342,1827.9,1827.5,5.47167]
[1743755885210,5.47108,1827.8,1827.6,0.547167]
[1743755886202,5.47108,1827.8,1827.5,5.47167]
[1743755886427,10.94229,1827.8,1827.5,5.47167]
[1743755886602,5.47108,1827.8,1827.5,5.47194]
[1743755887029,10.94232,1827.8,1827.5,5.47194]
[1743755887228,5.47108,1827.8,1827.5,5.47194]
[1743755887435,10.94231,1827.8,1827.5,6.8153127]
[1743755887629,10.94229,1827.8,1827.5,1.3433727]
[1743755887843,10.94234,1827.8,1827.5,1.3433727]
[1743755888234,5.47108,1827.8,1827.5,1.3433727]
[1743755889014,11.0418,1827.9,1827.5,6.86990498]
[1743755889637,5.47107,1827.8,1827.5,6.8151927]
[1743755889836,10.9423,1827.8,1827.5,1.3433727]
[1743755890047,5.47179,1827.6,1827.3,11.62239617]
[1743755890252,5.47198,1827.5,1827.3,6.14990617]
[1743755890454,5.47179,1827.6,1827.2,12.98875617]
[1743755890611,5.47179,1827.6,1827.2,18.46150617]
[1743755890810,5.47179,1827.6,1827.2,20.85315679]
[1743755891235,5.47179,1827.6,1827.2,15.38040679]
[1743755891445,10.94359,1827.6,1827.2,15.38040679]
[1743755891671,10.94359,1827.6,1827.2,12.98875617]
[1743755891672,5.47206,1827.5,1827.2,12.98875617]
[1743755891873,10.94422,1827.5,1827.2,12.98875617]
[1743755892031,5.47206,1827.5,1827.2,7.51600617]
[1743755892230,5.4723,1827.4,1827.2,6.14990617]
[1743755892436,10.94429,1827.5,1827.2,6.14990617]
[1743755892938,6.84827,1827.7,1827.3,0.05472337]
[1743755893132,5.47106,1827.8,1827.4,6.78395]
[1743755893133,5.47118,1827.8,1827.4,6.78395]
[1743755893436,10.99710342,1827.8,1827.5,5.47192]
[1743755893736,5.47118,1827.8,1827.5,5.47185]
[1743755893970,1.4006,1827.9,1827.6,5.47141]
[1743755894137,6.87146,1827.9,1827.6,5.47141]
[1743755894466,5.47107,1827.8,1827.5,5.47191]
[1743755894634,5.47107,1827.8,1827.5,6.12672988]
[1743755894854,6.87146,1827.9,1827.5,6.12672988]
[1743755895176,6.87146,1827.9,1827.5,6.12666988]
[1743755895380,5.47114,1827.8,1827.5,6.12666988]
[1743755895584,10.94238,1827.8,1827.5,6.12666988]
[1743755895876,5.47114,1827.8,1827.5,6.12666988]
[1743755897314,10.94235,1827.8,1827.5,6.12666988]
[1743755897481,5.47114,1827.8,1827.5,6.12666988]
[1743755897778,10.94245,1827.8,1827.5,0.65481988]
[1743755898140,5.47114,1827.8,1827.5,0.65481988]
[1743755898337,10.94241,1827.8,1827.5,0.65481988]
[1743755898788,1.4006,1827.9,1827.4,7.46160617]
[1743755899080,5.47188,1827.6,1827.4,6.14990617]
[1743755899431,10.99839342,1827.6,1827.4,6.14990617]
[1743755900641,6.77355,1827.5,1827.4,6.14990617]
[1743755900844,6.77355,1827.5,1827.2,5.47283]
[1743755901069,6.77355,1827.5,1827.2,7.72790662]
[1743755901297,12.24568,1827.5,1827.2,7.72790662]
[1743755901582,5.47269,1827.3,1827.1,6.14990617]
[1743755902341,10.99935342,1827.4,1827.1,6.14990617]
[1743755902791,5.47257,1827.3,1827.1,6.14990617]
[1743755904142,5.47355,1827.0,1826.7,6.8038]
[1743755904470,6.81885,1827.2,1826.8,5.47388]
[1743755904675,6.81885,1827.2,1826.7,13.57347062]
[1743755904676,5.47328,1827.1,1826.7,13.57347062]
[1743755904843,5.47353,1827.0,1826.7,13.57347062]
[1743755905677,5.47353,1827.0,1825.9,6.02648]
[1743755905678,1.41017342,1826.9,1826.2,1.265]
[1743755905880,5.47504,1826.5,1826.2,6.74077]
[1743755906109,5.47504,1826.5,1826.2,1.265]
[1743755906781,5.47504,1826.5,1826.0,14.41601027]
[1743755906782,5.47564,1826.3,1826.0,14.41601027]
[1743755906991,5.47564,1826.3,1826.0,19.89245027]
[1743755907863,5.47564,1826.3,1826.0,19.89242027]
[1743755908186,5.47528,1826.4,1826.0,19.89242027]
[1743755908374,10.95072,1826.4,1826.0,19.89231027]
[1743755908548,10.95072,1826.4,1826.0,25.36864027]
[1743755908748,5.47559,1826.3,1826.0,19.89231027]
[1743755909882,5.47528,1826.4,1826.0,25.36863027]
[1743755910182,0.05467342,1826.5,1826.0,14.83041094]
[1743755910348,6.81774,1826.8,1826.4,5.47522]
[1743755910550,5.47435,1826.7,1826.4,5.47522]
[1743755910755,5.47414,1826.8,1826.5,1.35174442]
[1743755910955,10.94838,1826.8,1826.5,1.97968444]
[1743755911264,11.00305342,1826.8,1826.5,1.97968444]
[1743755911463,5.47439,1826.7,1826.5,1.97968444]
[1743755911783,6.76285,1827.0,1826.5,6.77193]
[1743755911988,5.52862342,1826.9,1826.5,6.77193]
[1743755912151,11.00262342,1826.9,1826.5,6.82667412]
[1743755912351,5.47395,1826.9,1826.5,12.30146434]
[1743755912551,5.47395,1826.9,1826.6,5.47464]
[1743755912772,5.47395,1826.9,1826.6,6.699283]
[1743755913091,11.00256342,1826.9,1826.6,1.224643]
[1743755913300,0.05467342,1826.9,1826.6,1.224643]
[1743755913607,5.52844342,1826.9,1826.6,5.47458]
[1743755913797,5.47377,1826.9,1826.6,5.47458]
[1743755913978,6.7628,1827.0,1826.6,5.5292794]
[1743755913979,12.23637,1827.0,1826.6,5.5292794]
[1743755914163,12.23637,1827.0,1826.6,11.0038094]
[1743755914164,5.4735,1827.0,1826.6,11.0038094]
[1743755914365,3.0,1827.2,1826.8,1.3725]
[1743755914366,0.05467342,1827.2,1826.8,1.3725]
[1743755914578,5.47312,1827.2,1826.8,6.84644]
[1743755914780,12.32394,1827.3,1826.9,6.158264]
[1743755914983,5.473,1827.2,1826.9,0.684644]
[1743755915500,5.52767342,1827.2,1826.9,0.684644]
[1743755915854,10.94657,1827.1,1826.8,6.8255]
[1743755916195,5.47375,1826.9,1826.8,5.453]
[1743755916401,5.47375,1826.9,1826.6,6.85561]
[1743755916760,5.47407,1826.8,1826.6,1.381]
[1743755917691,12.21853,1827.0,1826.6,1.43574059]
[1743755917898,6.74489,1827.0,1826.6,8.76159727]
[1743755918100,5.52816342,1827.0,1826.7,5.47432]
[1743755918461,5.52816342,1827.0,1826.6,8.70685668]
[1743755918662,5.47384,1826.9,1826.6,8.70685668]
[1743755919104,5.47384,1826.9,1826.6,1.381]
[1743755919701,10.94788,1826.9,1826.6,1.381]
[1743755920118,0.05467342,1827.1,1826.6,3.86602662]
[1743755920305,0.05467342,1827.3,1826.9,1.3303]
[1743755920509,1.3142,1827.4,1827.2,5.47282]
[1743755920701,1.3142,1827.4,1826.9,1.3303]
[1743755921000,0.05467342,1827.3,1826.9,13.25356328]
[1743755921218,5.47309,1827.2,1826.9,5.453]
[1743755921523,10.94623,1827.2,1826.9,5.453]
[1743755922012,5.47309,1827.2,1826.9,5.453]
[1743755922223,10.94613,1827.2,1826.9,5.453]
[1743755922390,5.47318,1827.1,1826.9,5.453]
[1743755922899,5.47304,1827.2,1826.9,5.453]
[1743755923078,5.47303,1827.2,1826.9,5.453]
[1743755923993,5.52727342,1827.3,1826.9,16.40035]
[1743755924197,5.47288,1827.2,1826.9,10.92662]
[1743755924387,5.47288,1827.2,1826.9,5.453]
[1743755924589,5.52727342,1827.3,1826.9,12.019315]
[1743755924791,6.7865,1827.4,1827.1,5.47298]
[1743755924792,1.3142,1827.4,1827.1,5.47298]
[1743755924992,12.31373342,1827.4,1827.0,6.7337]
[1743755925305,12.25909,1827.4,1827.0,6.7337]
[1743755925511,5.47277,1827.3,1827.0,1.2604]
[1743755925705,5.47292,1827.2,1826.9,5.453]
[1743755925912,5.47292,1827.2,1826.9,10.92673]
[1743755926309,6.151307,1827.3,1826.9,16.45505247]
[1743755926510,5.47205,1827.5,1827.1,1.3012]
[1743755926814,5.52672342,1827.5,1827.1,12.24701]
[1743755927015,10.99886342,1827.5,1827.1,12.24701]
[1743755927211,10.99886342,1827.5,1827.1,6.77409]
[1743755927380,5.47231,1827.4,1827.1,6.77409]
[1743755927893,5.47215,1827.5,1827.1,6.77421]
[1743755928631,5.47215,1827.5,1827.2,11.00016316]
[1743755928814,5.47212,1827.5,1827.2,5.47271]
[1743755929907,5.52679342,1827.5,1827.2,5.47271]
[1743755930217,10.99899342,1827.5,1827.1,12.24732]
[1743755930421,10.99899342,1827.5,1827.1,12.24731]
[1743755930622,10.99895342,1827.5,1827.1,6.77425]
[1743755930915,5.52679342,1827.5,1827.1,12.2473]
[1743755931217,5.47212,1827.5,1827.2,5.47284]
[1743755931418,6.83162,1827.6,1827.2,10.94547]
[1743755931619,5.52639342,1827.6,1827.3,5.47245]
[1743755931819,5.47172,1827.6,1827.3,5.47243]
[1743755931993,5.47172,1827.6,1827.2,5.47274]
[1743755932321,5.47172,1827.6,1827.3,0.547274]
[1743755932531,10.94362,1827.6,1827.2,5.47274]
[1743755932836,5.47226,1827.4,1827.1,6.77428]
[1743755933021,10.94469,1827.4,1827.2,5.45]
[1743755933222,5.47226,1827.4,1827.2,5.45]
[1743755934194,5.47255,1827.3,1827.2,5.45]
[1743755934396,5.47255,1827.3,1826.9,6.772]
[1743755934612,5.47287,1827.2,1827.0,5.45]
[1743755935222,10.94588,1827.2,1826.9,1.2983]
[1743755935412,5.47349,1827.0,1826.6,11.62452617]
[1743755935705,1.3768,1827.0,1826.7,5.52897004]
[1743755936030,6.85026,1827.0,1826.7,5.47423]
[1743755936932,6.90493342,1827.0,1826.7,5.47423]
[1743755937296,6.90493342,1827.0,1826.7,7.18410762]
[1743755937995,12.37858342,1827.0,1826.6,11.62454617]
[1743755938217,12.32394,1827.0,1826.6,11.62445617]
[1743755938421,6.85026,1827.0,1826.7,5.47419]
[1743755938633,6.90493342,1827.0,1826.7,5.47419]
[1743755939325,5.47385,1826.9,1826.6,5.47459]
[1743755940193,5.52852342,1826.9,1826.6,5.47459]
[1743755941357,0.05467342,1826.9,1826.6,5.47459]
[1743755941639,0.05467342,1827.2,1827.0,5.47339]
[1743755941932,12.30233342,1827.4,1827.0,5.4733]
[1743755942112,12.24766,1827.4,1827.0,5.4733]
[1743755942305,0.05467342,1827.3,1827.0,5.4733]
[1743755942511,0.05467342,1827.3,1827.0,6.7370135]
[1743755942826,6.82991342,1827.4,1827.0,6.7370135]
[1743755943001,5.52723342,1827.3,1827.0,6.7370135]
[1743755943202,10.99994342,1827.3,1827.0,1.2637135]
[1743755943401,5.52723342,1827.3,1827.0,6.7371535]
[1743755944444,5.47256,1827.3,1827.0,6.7371535]
[1743755944628,5.52723342,1827.3,1827.0,6.7371535]
[1743755944925,5.52723342,1827.3,1827.0,1.2637135]
[1743755945131,5.47256,1827.3,1827.0,6.7371035]
[1743755946743,5.52723342,1827.3,1827.0,6.7371035]
[1743755947032,5.47256,1827.3,1827.0,6.7371035]
[1743755947538,5.47256,1827.3,1827.0,1.2637135]
[1743755947835,5.47256,1827.3,1827.0,6.7371535]
[1743755948040,10.94539,1827.3,1827.0,1.2637135]
[1743755948239,5.47256,1827.3,1826.9,16.3963]
[1743755948607,5.47256,1827.3,1827.0,5.4734]
[1743755950126,5.47256,1827.3,1827.0,5.47336]
[1743755950337,0.05467342,1827.3,1827.0,10.94671]
[1743755950537,6.77528,1827.4,1827.0,10.94671]
[1743755950538,12.30236342,1827.4,1827.1,5.47312]
[1743755950754,1.3029,1827.4,1827.1,5.47288]
[1743755950929,6.82994342,1827.4,1827.1,5.47288]
[1743755951116,12.30246342,1827.4,1827.0,5.47339]
[1743755951321,5.47255,1827.3,1827.0,5.47342]
[1743755951641,5.47255,1827.3,1827.0,7.113031]
[1743755951829,5.47255,1827.3,1827.0,5.47342]
[1743755952154,5.52722342,1827.3,1827.0,5.47342]
[1743755952516,5.47255,1827.3,1827.0,5.47342]
[1743755953047,5.52722342,1827.3,1826.9,16.39631]
[1743755953217,5.52722342,1827.3,1827.0,5.47344]
[1743755953515,5.47255,1827.3,1827.0,5.47344]
[1743755953912,5.47255,1827.3,1827.0,5.47331]
[1743755954345,5.52722342,1827.3,1827.0,5.47331]
[1743755954515,5.47286,1827.2,1826.9,18.78804162]
[1743755954709,5.47255,1827.3,1826.9,18.78804162]
[1743755954945,5.47255,1827.3,1827.0,5.47345]
[1743755955124,5.52722342,1827.3,1826.9,18.78804162]
[1743755955325,5.47255,1827.3,1827.0,5.47343]
[1743755955530,5.52722342,1827.3,1827.0,5.47343]
[1743755955930,5.47255,1827.3,1827.0,5.47343]
[1743755956250,5.52722342,1827.3,1827.0,5.47343]
[1743755956948,5.52727342,1827.3,1826.9,10.92261]
[1743755957249,1.2953,1827.2,1826.9,16.39624]
[1743755957461,1.2953,1827.2,1826.9,16.39625]
[1743755957652,6.76819,1827.2,1826.9,10.92261]
[1743755958353,1.2953,1827.2,1826.9,10.92261]
[1743755958649,1.2953,1827.2,1827.0,5.47345]
[1743755959045,1.2953,1827.2,1826.9,16.39624]
[1743755959250,6.76817,1827.2,1826.9,16.39625]
[1743755959566,1.2953,1827.2,1827.0,5.4734]
[1743755959854,1.2953,1827.2,1826.9,16.39625]
[1743755959855,1.34997342,1827.2,1826.9,16.39625]
[1743755960155,1.2953,1827.2,1826.9,16.39625]
[1743755960520,6.76816,1827.2,1826.9,10.92261]
[1743755960717,6.76816,1827.2,1826.9,16.39626]
[1743755960922,1.2953,1827.2,1826.9,16.39626]
[1743755961862,1.2953,1827.2,1827.0,5.47322]
[1743755962072,5.47256,1827.3,1827.0,12.038792]
[1743755962276,0.05467342,1827.3,1827.1,5.47292]
[1743755962474,0.05467342,1827.7,1827.6,5.47165]
[1743755962693,0.1,1827.9,1827.8,5.47105]
[1743755963459,0.1,1827.9,1827.8,13.45678178]
[1743755963626,0.1,1827.9,1827.8,15.4238298]
[1743755964457,0.1,1827.9,1827.8,12.93880318]
[1743755964660,0.1,1827.9,1827.8,5.446]
[1743755965247,0.1,1827.9,1827.7,17.67693]
[1743755965463,0.1,1827.9,1827.7,12.20558]
[1743755966666,0.1,1827.9,1827.7,10.91618]
[1743755966965,0.1,1827.9,1827.7,12.554962]
[1743755967466,0.1,1827.9,1827.7,7.083782]
[1743755968986,0.1,1827.9,1827.7,12.555122]
[1743755969378,0.1,1827.9,1827.7,7.083782]
[1743755969679,0.1,1827.9,1827.7,12.554992]
[1743755969883,0.1,1827.9,1827.8,6.7265492]
[1743755970175,0.1,1827.9,1827.8,1.2554992]
[1743755971050,0.1,1827.9,1827.8,6.7265492]
[1743755971289,0.1,1827.9,1827.8,1.2554992]
[1743755971651,0.1,1827.9,1827.8,8.15365562]
[1743755971853,0.1,1827.9,1827.8,10.63868224]
[1743755972285,0.1,1827.9,1827.8,10.58397582]
[1743755972698,0.1,1827.9,1827.8,10.63867929]
[1743755973407,0.1,1827.9,1827.8,10.58397582]
[1743755973775,0.1,1827.9,1827.8,10.63867923]
[1743755974387,0.1,1827.9,1827.8,19.73388199]
[1743755974987,0.1,1827.9,1827.8,15.87645537]
[1743755975905,0.1,1827.9,1827.8,16.67108199]
[1743755992919,0.1,1827.9,1827.8,12.87645537]
[1743755993524,1.37538435,1828.1,1827.9,5.4707]
[1743755993744,1.37538435,1828.1,1827.9,7.2562943]
[1743755994819,1.37538435,1828.1,1827.9,7.2562043]
[1743755997214,1.37538435,1828.1,1827.9,12.7268243]
[1743755997717,1.37538435,1828.1,1828.0,5.47045]
[1743755998323,5.52427342,1828.3,1828.0,5.47045]
[1743755998324,1.3383,1828.2,1828.0,5.47045]
[1743755998617,1.3383,1828.2,1828.0,1.2554992]
[1743755998829,1.3383,1828.2,1828.0,6.7259092]
[1743756000528,1.2699,1828.4,1828.3,5.46956]
[1743756001023,0.55,1828.5,1828.3,5.46956]
[1743756001395,1.3897,1828.3,1828.2,5.437]
[1743756001595,1.3897,1828.3,1828.2,7.074716]
[1743756002025,1.3897,1828.3,1828.2,5.437]
[1743756002228,6.85926,1828.3,1828.2,5.437]
[1743756002599,6.91393342,1828.3,1828.0,11.62030617]
[1743756003500,5.4699,1828.2,1828.0,6.14990617]
[1743756003849,12.32911,1828.3,1828.0,6.14990617]
[1743756004515,6.85926,1828.3,1828.0,6.14990617]
[1743756004692,0.05467342,1828.2,1828.0,6.14990617]
[1743756005697,0.05467342,1828.2,1827.9,16.37829]
[1743756006030,6.85926,1828.3,1827.9,18.016119]
[1743756006229,6.91393342,1828.3,1827.9,18.016119]
[1743756006635,1.44437342,1828.3,1828.0,10.94075]
[1743756006823,1.44437342,1828.3,1828.1,5.47015]
[1743756006998,1.3546,1828.4,1828.2,5.46986]
[1743756007198,1.3546,1828.4,1828.2,0.546986]
[1743756007426,6.87853342,1828.4,1828.2,0.546986]
[1743756007723,6.87853342,1828.4,1828.1,5.47003]
[1743756007931,1.3546,1828.4,1828.2,5.46985]
[1743756008498,1.3546,1828.4,1828.2,5.46983]
[1743756008794,1.3546,1828.4,1828.1,10.94007]
[1743756009018,1.3546,1828.4,1828.2,5.46984]
[1743756009229,1.3546,1828.4,1828.1,5.47003]
[1743756009230,1.3546,1828.4,1828.1,10.94008]
[1743756009431,1.3546,1828.4,1828.2,5.46981]
[1743756009731,1.40927342,1828.4,1828.2,5.46981]
[1743756009932,1.3546,1828.4,1828.1,12.161928]
[1743756010443,1.3546,1828.4,1828.2,5.4698]
[1743756011733,0.55,1828.5,1828.3,5.46933]
[1743756011940,0.55,1828.5,1828.4,6.016193]
[1743756012312,0.55,1828.5,1828.4,0.546933]
[1743756013038,6.01896,1828.5,1828.2,5.46976]
[1743756013736,6.01896,1828.5,1828.2,5.46973]
[1743756013951,6.07363342,1828.5,1828.2,5.46973]
[1743756014232,6.01896,1828.5,1828.2,5.46973]
[1743756014434,6.07363342,1828.5,1828.2,5.46973]
[1743756014734,6.01896,1828.5,1828.2,6.563713]
[1743756015145,6.07363342,1828.5,1828.2,6.563713]
[1743756015429,6.07363342,1828.5,1828.2,6.563703]
[1743756015638,6.01896,1828.5,1828.2,5.46972]
[1743756016006,6.07363342,1828.5,1828.2,5.46972]
[1743756016201,1.3945,1828.4,1828.2,5.46972]
[1743756018146,1.3945,1828.4,1828.2,10.93944]
[1743756018336,0.55,1828.5,1828.2,10.93944]
[1743756018538,0.55,1828.5,1828.3,6.563394]
[1743756018743,0.55,1828.5,1828.3,5.46945]
[1743756019062,1.3711,1828.4,1828.0,6.14990617]
[1743756019208,1.43466081,1828.4,1828.0,6.14990617]
[1743756019406,6.84996,1828.1,1828.0,6.14990617]
[1743756019639,6.90463342,1828.1,1827.8,5.434]
[1743756019811,6.90463342,1828.1,1827.8,7.071658]
[1743756020013,12.37496342,1828.1,1827.8,7.071658]
[1743756020261,6.84996,1828.1,1827.8,7.071658]
[1743756020418,12.37498342,1828.1,1827.8,7.071658]
[1743756020759,5.47049,1828.0,1827.8,7.071658]
[1743756021550,5.47049,1828.0,1827.7,5.47124]
[1743756021845,5.47049,1828.0,1827.7,10.90524]
[1743756021846,5.52516342,1828.0,1827.7,10.90524]
[1743756022145,5.52516342,1828.0,1827.7,5.47124]
[1743756022338,5.52516342,1828.0,1827.7,10.90524]
[1743756022545,5.52516342,1828.0,1827.7,5.434]
[1743756022849,5.52516342,1828.0,1827.7,10.90435]
[1743756023240,5.52516342,1828.0,1827.7,12.67838]
[1743756023549,1.3798,1828.1,1827.9,5.47075]
[1743756023737,1.43447342,1828.1,1827.9,5.47075]
[1743756023938,0.05467342,1828.2,1827.9,5.47061]
[1743756024138,1.39277342,1828.3,1828.1,5.47002]
[1743756024338,1.3381,1828.3,1828.2,5.46986]
[1743756024648,1.3381,1828.3,1828.1,5.47002]
[1743756024849,1.3381,1828.3,1828.0,5.47036]
[1743756025043,6.80775,1828.3,1828.1,0.547036]
[1743756025563,6.80775,1828.3,1828.0,5.47032]
[1743756025735,12.27759,1828.3,1827.9,6.77455]
[1743756026123,12.27759,1828.3,1827.9,12.24517]
[1743756026555,1.3381,1828.3,1828.0,5.47026]
[1743756026759,1.3381,1828.3,1828.0,10.94062]
[1743756026975,1.3381,1828.3,1828.1,6.564212]
[1743756027925,6.82277739,1828.4,1828.1,6.564212]
[1743756028228,6.87745081,1828.4,1828.1,6.564212]
[1743756028926,6.87745081,1828.4,1828.1,11.997212]
[1743756029825,12.34688081,1828.4,1828.1,11.997212]
[1743756030026,6.82277739,1828.4,1828.1,11.997132]
[1743756030271,0.00888739,1828.4,1828.2,6.79791]
[1743756030422,0.00888739,1828.4,1828.2,8.1304072]
[1743756033161,0.00888739,1828.4,1828.2,13.6001572]
[1743756033460,0.00888739,1828.4,1828.2,8.1304072]
[1743756033660,0.00888739,1828.4,1828.2,13.6001472]
[1743756034164,0.00888739,1828.4,1828.2,13.6001572]
[1743756035844,0.00888739,1828.4,1828.2,13.6001272]
[1743756036165,0.00888739,1828.4,1828.2,8.1304072]
[1743756036463,0.00888739,1828.4,1828.2,13.6001572]
[1743756036962,0.00888739,1828.4,1828.3,5.46956]
[1743756037139,0.00888739,1828.4,1828.3,6.0840943]
[1743756038168,0.00888739,1828.4,1828.3,0.6145343]
[1743756038341,0.00888739,1828.4,1828.2,13.6001272]
[1743756039145,0.00888739,1828.4,1828.3,5.46956]
[1743756041673,1.35736081,1828.4,1828.0,6.14990617]
[1743756041871,5.4701,1828.2,1828.0,6.14990617]
[1743756042071,0.05467342,1828.1,1828.0,6.14990617]
[1743756042640,5.52477342,1828.2,1828.0,6.14990617]
[1743756043140,5.52472342,1828.2,1828.0,6.14990617]
[1743756043340,5.47016,1828.1,1827.8,10.90095]
[1743756043555,1.44507342,1828.0,1827.8,10.90095]
[1743756044053,1.3904,1828.0,1827.8,10.90093]
[1743756046270,1.3904,1828.0,1827.9,5.47075]
[1743756046480,0.05467342,1828.1,1827.9,5.47075]
[1743756047273,5.47055,1828.0,1827.8,5.43]
[1743756047480,1.3026,1827.9,1827.8,5.43]
[1743756047849,6.82802342,1827.9,1827.6,5.47162]
[1743756048050,6.82802342,1827.9,1827.6,7.42329924]
[1743756048249,6.82802342,1827.9,1827.6,12.89483924]
[1743756048450,1.3026,1827.9,1827.7,5.47135]
[1743756048650,1.3026,1827.9,1827.7,10.94256]
[1743756048851,5.47055,1828.0,1827.7,5.47121]
[1743756049784,5.52522342,1828.0,1827.7,5.47121]
[1743756050195,10.99590342,1828.0,1827.6,7.42326924]
[1743756050354,5.47086,1827.9,1827.5,8.20077949]
[1743756050553,1.2646,1827.7,1827.5,12.37287949]
[1743756050762,1.2646,1827.7,1827.5,10.90186]
[1743756051162,1.2646,1827.7,1827.5,10.90181]
[1743756051381,6.83456,1827.9,1827.6,5.47147]
[1743756051579,6.88923342,1827.9,1827.6,5.47147]
[1743756053481,1.41837342,1827.9,1827.6,1.637336]
[1743756053688,1.3637,1827.9,1827.7,5.47109]
[1743756053985,1.3637,1827.9,1827.6,5.47154]
[1743756054161,1.3637,1827.9,1827.6,10.94308]
[1743756054378,5.52513342,1828.0,1827.7,5.47125]
[1743756054576,5.47046,1828.0,1827.7,5.47125]
[1743756054885,5.47075,1827.9,1827.8,0.547125]
[1743756055106,5.47075,1827.9,1827.6,10.94307]
[1743756055308,10.99573342,1828.0,1827.6,10.94307]
[1743756055584,5.47077,1827.9,1827.6,5.47151]
[1743756055886,5.4709,1827.9,1827.6,5.47151]
[1743756056186,10.99582342,1828.0,1827.6,5.47151]
[1743756056351,5.52513342,1828.0,1827.7,0.547151]
[1743756056555,5.47046,1828.0,1827.7,0.547151]
[1743756056755,5.47076,1827.9,1827.7,0.547151]
[1743756057693,5.47076,1827.9,1827.5,17.74356]
[1743756059304,5.47076,1827.9,1827.5,12.27168]
[1743756059469,1.3015,1828.1,1827.5,5.43]
[1743756059470,1.2825,1827.8,1827.5,5.43]
[1743756059657,5.47142,1827.7,1827.4,11.57890617]
[1743756059862,5.52609342,1827.7,1827.4,11.57890617]
[1743756060065,5.47142,1827.7,1827.4,13.46338037]
[1743756060994,5.47142,1827.7,1827.4,18.93562037]
[1743756061385,5.47142,1827.7,1827.4,13.46338037]
[1743756061763,10.94293,1827.7,1827.4,8.03438037]
[1743756061964,10.99760342,1827.7,1827.4,1.8844742]
[1743756062213,10.94371,1827.6,1827.3,5.428]
[1743756062507,6.84599,1827.5,1827.3,5.428]
[1743756063206,1.298,1827.9,1827.6,5.47156]
[1743756063359,1.298,1827.9,1827.5,5.47185]
[1743756063559,12.23978,1827.9,1827.6,0.547185]
[1743756063861,5.47108,1827.8,1827.4,7.40890617]
[1743756064088,5.47144,1827.7,1827.4,7.40890617]
[1743756064306,6.86913342,1827.6,1827.4,6.14990617]
[1743756064657,5.47195,1827.5,1827.4,6.14990617]
[1743756064861,5.47195,1827.5,1827.3,5.428]
[1743756065302,5.47225,1827.4,1827.3,5.428]